[Event "*** Titled Tuesday Blitz"]
[Site "Chess.com"]
[Date "2021.02.09"]
[Round "6"]
[White "ErikRonka"]
[Black "Ekose"]
[Result "1-0"]
[WhiteElo "2459"]
[BlackElo "2594"]
[TimeControl "180+1"]
[EndTime "11:09:09 PST"]
[Termination "ErikRonka won on time"]

1. e4 {[%clk 0:03:00.9]} 1... e6 {[%clk 0:02:57.7]} 2. d4 {[%clk 0:03:00.7]}
2... d5 {[%clk 0:02:57.7]} 3. exd5 {[%clk 0:03:01]} 3... exd5 {[%clk 0:02:57.8]}
4. Nf3 {[%clk 0:03:01.6]} 4... Bg4 {[%clk 0:02:57.5]} 5. h3 {[%clk 0:03:00.8]}
5... Bh5 {[%clk 0:02:56.7]} 6. Qe2+ {[%clk 0:03:01.2]} 6... Qe7 {[%clk
0:02:56.2]} 7. Be3 {[%clk 0:03:01.2]} 7... Nf6 {[%clk 0:02:53.2]} 8. Nc3 {[%clk
0:02:47.8]} 8... c6 {[%clk 0:02:26.3]} 9. O-O-O {[%clk 0:02:39.5]} 9... Nbd7
{[%clk 0:02:25.6]} 10. g4 {[%clk 0:02:39.9]} 10... Bg6 {[%clk 0:02:25.4]} 11.
Ne5 {[%clk 0:02:39.3]} 11... O-O-O {[%clk 0:02:17.6]} 12. Bg2 {[%clk 0:02:14.4]}
12... Ne8 {[%clk 0:01:10.9]} 13. Nxc6 {[%clk 0:01:57.3]} 13... bxc6 {[%clk
0:00:42.3]} 14. Qa6+ {[%clk 0:01:56.6]} 14... Kc7 {[%clk 0:00:42.7]} 15. Bf4+
{[%clk 0:01:38.1]} 15... Nd6 {[%clk 0:00:42.4]} 16. Bxd5 {[%clk 0:01:02.5]}
16... Nb8 {[%clk 0:00:34.7]} 17. Nb5+ {[%clk 0:00:47.7]} 17... Kd7 {[%clk
0:00:29]} 18. Qxa7+ {[%clk 0:00:40.8]} 18... Kc8 {[%clk 0:00:20.6]} 19. Nxd6+
{[%clk 0:00:25]} 19... Rxd6 {[%clk 0:00:20.1]} 20. Qxe7 {[%clk 0:00:15]} 20...
Bxe7 {[%clk 0:00:21]} 21. Bxd6 {[%clk 0:00:15.3]} 21... Bxd6 {[%clk 0:00:21.9]}
22. Bb3 {[%clk 0:00:14.7]} 22... Bf4+ {[%clk 0:00:21]} 23. Kb1 {[%clk
0:00:14.6]} 23... Be4 {[%clk 0:00:19.3]} 24. Rhe1 {[%clk 0:00:14.3]} 24... Bf3
{[%clk 0:00:18.4]} 25. Rd3 {[%clk 0:00:14.4]} 25... Bd5 {[%clk 0:00:10.2]} 26.
Bxd5 {[%clk 0:00:11.6]} 26... cxd5 {[%clk 0:00:11.1]} 27. Rf3 {[%clk 0:00:12.1]}
27... g5 {[%clk 0:00:10.8]} 28. b3 {[%clk 0:00:10.3]} 28... Kd7 {[%clk
0:00:10.8]} 29. c4 {[%clk 0:00:10.2]} 29... Nc6 {[%clk 0:00:11.4]} 30. Rd3
{[%clk 0:00:09.4]} 30... h5 {[%clk 0:00:10.7]} 31. a3 {[%clk 0:00:07.3]} 31...
hxg4 {[%clk 0:00:10.5]} 32. hxg4 {[%clk 0:00:08.2]} 32... Rh2 {[%clk 0:00:10.9]}
33. Re2 {[%clk 0:00:08.6]} 33... Rh1+ {[%clk 0:00:10]} 34. Ka2 {[%clk
0:00:08.1]} 34... Rc1 {[%clk 0:00:09.4]} 35. cxd5 {[%clk 0:00:07.6]} 35... Ne7
{[%clk 0:00:09.9]} 36. b4 {[%clk 0:00:06.2]} 36... Nxd5 {[%clk 0:00:10.1]} 37.
Kb3 {[%clk 0:00:05.8]} 37... Bd6 {[%clk 0:00:06.5]} 38. Rc2 {[%clk 0:00:05.5]}
38... Rb1+ {[%clk 0:00:05.9]} 39. Ka4 {[%clk 0:00:05.4]} 39... Nf4 {[%clk
0:00:05.4]} 40. Rdc3 {[%clk 0:00:05.1]} 40... Nd5 {[%clk 0:00:05.3]} 41. Rc4
{[%clk 0:00:04.5]} 41... Nb6+ {[%clk 0:00:05.2]} 42. Kb5 {[%clk 0:00:04.8]}
42... Nxc4 {[%clk 0:00:05.2]} 43. Rxc4 {[%clk 0:00:05.7]} 43... Rf1 {[%clk
0:00:04]} 44. a4 {[%clk 0:00:05.6]} 44... Rxf2 {[%clk 0:00:04.5]} 45. a5 {[%clk
0:00:05.8]} 45... Ra2 {[%clk 0:00:02.4]} 46. a6 {[%clk 0:00:06.2]} 46... f5
{[%clk 0:00:02.1]} 47. gxf5 {[%clk 0:00:05.9]} 47... g4 {[%clk 0:00:02.7]} 48.
Kb6 {[%clk 0:00:06.4]} 48... g3 {[%clk 0:00:03.2]} 49. a7 {[%clk 0:00:06.4]}
49... g2 {[%clk 0:00:03.1]} 50. Rc1 {[%clk 0:00:06.4]} 1-0

[Event "*** Titled Tuesday Blitz"]
[Site "Chess.com"]
[Date "2021.02.09"]
[Round "6"]
[White "vladgoncharov"]
[Black "vovachesss"]
[Result "0-1"]
[WhiteElo "2489"]
[BlackElo "2741"]
[TimeControl "180+1"]
[EndTime "11:09:10 PST"]
[Termination "vovachesss won on time"]

1. Nf3 {[%clk 0:03:00.9]} 1... g6 {[%clk 0:02:52.7]} 2. c4 {[%clk 0:02:59.4]}
2... Bg7 {[%clk 0:02:52.9]} 3. g3 {[%clk 0:03:00]} 3... b6 {[%clk 0:02:52.6]} 4.
Bg2 {[%clk 0:03:00.2]} 4... Bb7 {[%clk 0:02:53.3]} 5. O-O {[%clk 0:03:00.6]}
5... e5 {[%clk 0:02:52.4]} 6. Nc3 {[%clk 0:02:58.5]} 6... Ne7 {[%clk 0:02:52.1]}
7. d3 {[%clk 0:02:55.9]} 7... O-O {[%clk 0:02:51.9]} 8. Rb1 {[%clk 0:02:55.1]}
8... d5 {[%clk 0:02:52]} 9. cxd5 {[%clk 0:02:53.7]} 9... Nxd5 {[%clk 0:02:52.9]}
10. Bd2 {[%clk 0:02:52]} 10... c5 {[%clk 0:02:51.9]} 11. a3 {[%clk 0:02:45.4]}
11... Nc6 {[%clk 0:02:51.3]} 12. b4 {[%clk 0:02:42.8]} 12... cxb4 {[%clk
0:02:48.5]} 13. Nxd5 {[%clk 0:02:42.4]} 13... Qxd5 {[%clk 0:02:47.9]} 14. axb4
{[%clk 0:02:41.7]} 14... Nd4 {[%clk 0:02:28.9]} 15. e4 {[%clk 0:02:41.3]} 15...
Qd7 {[%clk 0:02:25.5]} 16. Nxd4 {[%clk 0:02:39.8]} 16... Qxd4 {[%clk 0:02:26.4]}
17. Be3 {[%clk 0:02:39.2]} 17... Qd7 {[%clk 0:02:22.9]} 18. Qb3 {[%clk
0:02:36.7]} 18... Rfd8 {[%clk 0:02:20.9]} 19. Rfd1 {[%clk 0:02:35.9]} 19... Rac8
{[%clk 0:02:16.6]} 20. b5 {[%clk 0:02:35.4]} 20... Rc7 {[%clk 0:02:12.1]} 21. h4
{[%clk 0:02:32.7]} 21... Bc8 {[%clk 0:02:02.7]} 22. Rbc1 {[%clk 0:02:27.5]}
22... Bf8 {[%clk 0:01:29.9]} 23. Rxc7 {[%clk 0:02:06.1]} 23... Qxc7 {[%clk
0:01:30.8]} 24. d4 {[%clk 0:01:59.1]} 24... exd4 {[%clk 0:01:24.7]} 25. Rxd4
{[%clk 0:01:58.5]} 25... Be6 {[%clk 0:01:21]} 26. Qa4 {[%clk 0:01:41]} 26...
Rxd4 {[%clk 0:01:13.9]} 27. Bxd4 {[%clk 0:01:40.8]} 27... Bd7 {[%clk 0:01:02.3]}
28. Qb3 {[%clk 0:01:22.6]} 28... Be6 {[%clk 0:00:49]} 29. Qa4 {[%clk 0:01:21]}
29... Bd7 {[%clk 0:00:43.4]} 30. Qb3 {[%clk 0:01:16.8]} 30... Bc5 {[%clk
0:00:43.1]} 31. Bxc5 {[%clk 0:01:10.3]} 31... Be6 {[%clk 0:00:32.6]} 32. Qc3
{[%clk 0:00:57.6]} 32... bxc5 {[%clk 0:00:32.2]} 33. e5 {[%clk 0:00:42.5]} 33...
c4 {[%clk 0:00:28.4]} 34. Bc6 {[%clk 0:00:41.5]} 34... Qb6 {[%clk 0:00:28.5]}
35. Kf1 {[%clk 0:00:29]} 35... Qc5 {[%clk 0:00:21.9]} 36. Qe3 {[%clk 0:00:26.4]}
36... Qe7 {[%clk 0:00:12.6]} 37. Qd4 {[%clk 0:00:20.8]} 37... h5 {[%clk
0:00:11]} 38. Kg2 {[%clk 0:00:20.3]} 38... Kg7 {[%clk 0:00:11]} 39. Kh2 {[%clk
0:00:17.2]} 39... Qb4 {[%clk 0:00:09.2]} 40. Qxa7 {[%clk 0:00:16.4]} 40... c3
{[%clk 0:00:09.4]} 41. b6 {[%clk 0:00:12.7]} 41... c2 {[%clk 0:00:09.1]} 42. b7
{[%clk 0:00:13]} 42... c1=Q {[%clk 0:00:05.3]} 43. b8=Q {[%clk 0:00:12.7]} 43...
Qbe1 {[%clk 0:00:03.7]} 44. f4 {[%clk 0:00:03.8]} 44... Qcd2+ {[%clk 0:00:03.8]}
45. Bg2 {[%clk 0:00:03.5]} 45... Bd5 {[%clk 0:00:03.4]} 46. Qxf7+ {[%clk
0:00:01.3]} 46... Bxf7 {[%clk 0:00:03.2]} 47. Qb6 {[%clk 0:00:01.3]} 47... Qdf2
{[%clk 0:00:02.7]} 0-1

[Event "*** Titled Tuesday Blitz"]
[Site "Chess.com"]
[Date "2021.02.09"]
[Round "6"]
[White "ketster"]
[Black "sopo-tereladze"]
[Result "1-0"]
[WhiteElo "2449"]
[BlackElo "2281"]
[TimeControl "180+1"]
[EndTime "11:09:13 PST"]
[Termination "ketster won by checkmate"]

1. d4 {[%clk 0:03:00.9]} 1... Nf6 {[%clk 0:02:58.6]} 2. c4 {[%clk 0:02:59.2]}
2... e6 {[%clk 0:02:58.7]} 3. g3 {[%clk 0:02:57.7]} 3... Be7 {[%clk 0:02:57.7]}
4. Bg2 {[%clk 0:02:57.2]} 4... d5 {[%clk 0:02:57.5]} 5. Nf3 {[%clk 0:02:57.2]}
5... O-O {[%clk 0:02:57]} 6. Qc2 {[%clk 0:02:52.6]} 6... dxc4 {[%clk 0:02:57.9]}
7. O-O {[%clk 0:02:48.5]} 7... b5 {[%clk 0:02:52.9]} 8. Ne5 {[%clk 0:02:38.2]}
8... Nd5 {[%clk 0:02:51.6]} 9. a4 {[%clk 0:02:38.1]} 9... c6 {[%clk 0:02:48.5]}
10. Nc3 {[%clk 0:02:29.3]} 10... b4 {[%clk 0:02:35.5]} 11. Ne4 {[%clk
0:02:25.1]} 11... Ba6 {[%clk 0:02:14.1]} 12. Nxc4 {[%clk 0:02:21.9]} 12... Nd7
{[%clk 0:02:04.8]} 13. b3 {[%clk 0:02:02]} 13... Rc8 {[%clk 0:01:43.9]} 14. Ned6
{[%clk 0:02:01.6]} 14... Rc7 {[%clk 0:01:34.3]} 15. Bb2 {[%clk 0:01:52.3]} 15...
N7b6 {[%clk 0:01:22]} 16. Nxb6 {[%clk 0:01:47.9]} 16... axb6 {[%clk 0:01:20.6]}
17. Nc4 {[%clk 0:01:39]} 17... Bf6 {[%clk 0:01:11]} 18. Rad1 {[%clk 0:01:36.5]}
18... b5 {[%clk 0:01:07.1]} 19. Ne5 {[%clk 0:01:30.6]} 19... bxa4 {[%clk
0:01:01.4]} 20. bxa4 {[%clk 0:01:29.9]} 20... Bxe5 {[%clk 0:00:57.3]} 21. dxe5
{[%clk 0:01:28.8]} 21... Qc8 {[%clk 0:00:58.2]} 22. Qc5 {[%clk 0:01:26.4]} 22...
Bxe2 {[%clk 0:00:54.1]} 23. Rc1 {[%clk 0:01:17.3]} 23... Bxf1 {[%clk 0:00:53.6]}
24. Bxf1 {[%clk 0:01:17]} 24... Rd8 {[%clk 0:00:47.8]} 25. Bg2 {[%clk
0:01:10.2]} 25... h6 {[%clk 0:00:42.7]} 26. h4 {[%clk 0:01:07.9]} 26... Qa6
{[%clk 0:00:34]} 27. Ra1 {[%clk 0:00:49.8]} 27... Qe2 {[%clk 0:00:28.1]} 28. Bd4
{[%clk 0:00:48.3]} 28... Ne7 {[%clk 0:00:19.5]} 29. a5 {[%clk 0:00:42.5]} 29...
Nf5 {[%clk 0:00:17.5]} 30. Qb6 {[%clk 0:00:41.1]} 30... Rcd7 {[%clk 0:00:16]}
31. Bc5 {[%clk 0:00:26.3]} 31... b3 {[%clk 0:00:15.6]} 32. Qxb3 {[%clk
0:00:23.2]} 32... Rd1+ {[%clk 0:00:13.1]} 33. Rxd1 {[%clk 0:00:23.2]} 33...
Rxd1+ {[%clk 0:00:13.7]} 34. Kh2 {[%clk 0:00:23.7]} 34... Rd2 {[%clk 0:00:10]}
35. Qb8+ {[%clk 0:00:20.1]} 35... Kh7 {[%clk 0:00:09.3]} 36. Qb7 {[%clk
0:00:19.5]} 36... Kg6 {[%clk 0:00:07.7]} 37. Qxc6 {[%clk 0:00:17.2]} 37... Qe1
{[%clk 0:00:02]} 38. a6 {[%clk 0:00:09.4]} 38... Rd1 {[%clk 0:00:01.9]} 39. a7
{[%clk 0:00:09.4]} 39... Qg1+ {[%clk 0:00:02.8]} 40. Kh3 {[%clk 0:00:09.6]}
40... h5 {[%clk 0:00:03]} 41. a8=Q {[%clk 0:00:09.4]} 41... Nxg3 {[%clk
0:00:02.9]} 42. Kxg3 {[%clk 0:00:06.6]} 42... Rd2 {[%clk 0:00:03.8]} 43. Qf3
{[%clk 0:00:06.6]} 43... Rd3 {[%clk 0:00:03.2]} 44. Qe4+ {[%clk 0:00:06.5]}
44... f5 {[%clk 0:00:02.6]} 45. exf6+ {[%clk 0:00:06.7]} 45... Kf7 {[%clk
0:00:02.6]} 46. Qexd3 {[%clk 0:00:06.5]} 46... gxf6 {[%clk 0:00:01.6]} 47. Qd7+
{[%clk 0:00:06.7]} 47... Kg6 {[%clk 0:00:01.7]} 48. Qxe6 {[%clk 0:00:07.1]}
48... Kg7 {[%clk 0:00:01.5]} 49. Qexf6+ {[%clk 0:00:07.4]} 49... Kh7 {[%clk
0:00:02.4]} 50. Qf7+ {[%clk 0:00:07.6]} 50... Kh6 {[%clk 0:00:02.5]} 51. Q3f6#
{[%clk 0:00:07.6]} 1-0

[Event "*** Titled Tuesday Blitz"]
[Site "Chess.com"]
[Date "2021.02.09"]
[Round "6"]
[White "kekic76"]
[Black "MVM2008"]
[Result "1-0"]
[WhiteElo "2377"]
[BlackElo "2122"]
[TimeControl "180+1"]
[EndTime "11:09:16 PST"]
[Termination "kekic76 won on time"]

1. e4 {[%clk 0:03:00.9]} 1... Nf6 {[%clk 0:03:00.3]} 2. Nc3 {[%clk 0:02:58.7]}
2... e5 {[%clk 0:02:55.8]} 3. Bc4 {[%clk 0:02:57.8]} 3... c6 {[%clk 0:02:47.7]}
4. Qf3 {[%clk 0:02:46]} 4... b5 {[%clk 0:02:34.8]} 5. Bb3 {[%clk 0:02:44.3]}
5... a5 {[%clk 0:02:33.1]} 6. a4 {[%clk 0:02:43.9]} 6... b4 {[%clk 0:02:32.8]}
7. Nd1 {[%clk 0:02:32.8]} 7... Na6 {[%clk 0:02:20.2]} 8. d3 {[%clk 0:02:22.8]}
8... Nc5 {[%clk 0:02:12.6]} 9. Bc4 {[%clk 0:02:22.7]} 9... d5 {[%clk 0:02:09.2]}
10. exd5 {[%clk 0:02:22.7]} 10... cxd5 {[%clk 0:02:10.1]} 11. Bb5+ {[%clk
0:02:23]} 11... Bd7 {[%clk 0:02:10]} 12. Bxd7+ {[%clk 0:02:21.4]} 12... Qxd7
{[%clk 0:02:10.9]} 13. b3 {[%clk 0:02:17.6]} 13... Bd6 {[%clk 0:02:05.5]} 14.
Bg5 {[%clk 0:02:15.8]} 14... e4 {[%clk 0:02:01.6]} 15. Qe2 {[%clk 0:02:14.2]}
15... Qf5 {[%clk 0:01:55.9]} 16. Bxf6 {[%clk 0:01:08.5]} 16... Qxf6 {[%clk
0:01:56.1]} 17. Rb1 {[%clk 0:01:05.8]} 17... O-O {[%clk 0:01:44.6]} 18. Ne3
{[%clk 0:01:00.6]} 18... exd3 {[%clk 0:01:33.7]} 19. cxd3 {[%clk 0:00:59.5]}
19... Rfe8 {[%clk 0:01:00.6]} 20. d4 {[%clk 0:00:55.3]} 20... Qxd4 {[%clk
0:00:55.8]} 21. Kf1 {[%clk 0:00:49.8]} 21... Qe4 {[%clk 0:00:41.3]} 22. Qd1
{[%clk 0:00:42.4]} 22... d4 {[%clk 0:00:26.9]} 23. Nc4 {[%clk 0:00:40.9]} 23...
Bc7 {[%clk 0:00:22.7]} 24. Nf3 {[%clk 0:00:38.4]} 24... Rad8 {[%clk 0:00:19]}
25. g3 {[%clk 0:00:36.7]} 25... d3 {[%clk 0:00:16.1]} 26. Kg2 {[%clk 0:00:36.2]}
26... Qe2 {[%clk 0:00:13.6]} 27. Re1 {[%clk 0:00:31.4]} 27... Qxd1 {[%clk
0:00:13.4]} 28. Rexd1 {[%clk 0:00:30.5]} 28... Ne4 {[%clk 0:00:10.9]} 29. Rb2
{[%clk 0:00:25.9]} 29... Nc3 {[%clk 0:00:09.7]} 30. Rdd2 {[%clk 0:00:25.8]}
30... Re2 {[%clk 0:00:06.3]} 31. Ng1 {[%clk 0:00:22.1]} 31... Rxd2 {[%clk
0:00:06.1]} 32. Rxd2 {[%clk 0:00:22.8]} 32... Ne4 {[%clk 0:00:06.2]} 33. Rd1
{[%clk 0:00:20.7]} 33... d2 {[%clk 0:00:04]} 34. Nf3 {[%clk 0:00:21]} 34... Rd3
{[%clk 0:00:03.4]} 35. Ncxd2 {[%clk 0:00:19.1]} 35... Nxd2 {[%clk 0:00:02.9]}
36. Rxd2 {[%clk 0:00:19]} 36... Rxd2 {[%clk 0:00:03.2]} 37. Nxd2 {[%clk
0:00:17.7]} 37... Kf8 {[%clk 0:00:03.6]} 38. Kf3 {[%clk 0:00:17.5]} 38... Ke7
{[%clk 0:00:03.3]} 39. Ke4 {[%clk 0:00:17.9]} 39... Ke6 {[%clk 0:00:03.2]} 40.
Nc4 {[%clk 0:00:17.9]} 40... Bd8 {[%clk 0:00:01.7]} 41. g4 {[%clk 0:00:17.5]}
41... f6 {[%clk 0:00:01.7]} 42. f4 {[%clk 0:00:17.4]} 42... g6 {[%clk
0:00:02.4]} 43. f5+ {[%clk 0:00:17.2]} 43... gxf5+ {[%clk 0:00:03.3]} 44. gxf5+
{[%clk 0:00:16.5]} 44... Kd7 {[%clk 0:00:04]} 45. Kd5 {[%clk 0:00:16]} 45... Bc7
{[%clk 0:00:04.5]} 46. h3 {[%clk 0:00:15.6]} 46... h5 {[%clk 0:00:04.3]} 47. Nd2
{[%clk 0:00:14.3]} 47... h4 {[%clk 0:00:03.8]} 48. Ne4 {[%clk 0:00:14.2]} 48...
Be5 {[%clk 0:00:03.6]} 49. Nc5+ {[%clk 0:00:13.2]} 49... Kc7 {[%clk 0:00:03.1]}
50. Ke6 {[%clk 0:00:12.5]} 50... Kc6 {[%clk 0:00:02.9]} 51. Nd7 {[%clk
0:00:12.5]} 51... Bd4 {[%clk 0:00:01.9]} 52. Nxf6 {[%clk 0:00:12.6]} 52... Kc5
{[%clk 0:00:01.5]} 53. Ne4+ {[%clk 0:00:12.5]} 53... Kc6 {[%clk 0:00:01.3]} 54.
f6 {[%clk 0:00:12.8]} 1-0

[Event "*** Titled Tuesday Blitz"]
[Site "Chess.com"]
[Date "2021.02.09"]
[Round "6"]
[White "TimofeevAr"]
[Black "1977Ivan"]
[Result "1-0"]
[WhiteElo "2868"]
[BlackElo "2677"]
[TimeControl "180+1"]
[EndTime "11:09:17 PST"]
[Termination "TimofeevAr won on time"]

1. c4 {[%clk 0:03:00.9]} 1... e6 {[%clk 0:02:59.4]} 2. Nf3 {[%clk 0:02:59.6]}
2... c5 {[%clk 0:02:58.1]} 3. Nc3 {[%clk 0:02:58.2]} 3... Nc6 {[%clk 0:02:56.7]}
4. e4 {[%clk 0:02:58]} 4... e5 {[%clk 0:02:54.3]} 5. d3 {[%clk 0:02:56.4]} 5...
d6 {[%clk 0:02:54.4]} 6. a3 {[%clk 0:02:55.5]} 6... Be7 {[%clk 0:02:53.9]} 7.
Rb1 {[%clk 0:02:51.1]} 7... a5 {[%clk 0:02:51.3]} 8. Be2 {[%clk 0:02:47.4]} 8...
f5 {[%clk 0:02:51.7]} 9. exf5 {[%clk 0:02:45.3]} 9... Bxf5 {[%clk 0:02:52.6]}
10. O-O {[%clk 0:02:45.3]} 10... Nf6 {[%clk 0:02:52.1]} 11. Ng5 {[%clk
0:02:40.7]} 11... O-O {[%clk 0:02:42.8]} 12. Bf3 {[%clk 0:02:39.9]} 12... Nd4
{[%clk 0:02:27.4]} 13. Bxb7 {[%clk 0:02:36.3]} 13... Rb8 {[%clk 0:02:26.9]} 14.
Be4 {[%clk 0:02:32.5]} 14... Bg4 {[%clk 0:02:10.9]} 15. f3 {[%clk 0:02:21.2]}
15... Bd7 {[%clk 0:02:05]} 16. Nd5 {[%clk 0:02:13.9]} 16... Kh8 {[%clk
0:01:52.1]} 17. Nxe7 {[%clk 0:01:38.5]} 17... Qxe7 {[%clk 0:01:50.9]} 18. f4
{[%clk 0:01:16]} 18... h6 {[%clk 0:01:47.9]} 19. Nf3 {[%clk 0:01:13.4]} 19...
Nxe4 {[%clk 0:01:37.9]} 20. dxe4 {[%clk 0:01:13]} 20... Bg4 {[%clk 0:01:35.6]}
21. f5 {[%clk 0:01:08.8]} 21... Qf6 {[%clk 0:01:17.4]} 22. Be3 {[%clk
0:01:05.6]} 22... Bxf3 {[%clk 0:01:13.9]} 23. gxf3 {[%clk 0:01:05.4]} 23... g6
{[%clk 0:01:14.5]} 24. f4 {[%clk 0:00:47.1]} 24... gxf5 {[%clk 0:01:07.2]} 25.
Qh5 {[%clk 0:00:46.9]} 25... Rg8+ {[%clk 0:00:09.9]} 26. Kh1 {[%clk 0:00:46.4]}
26... Rb7 {[%clk 0:00:10]} 27. fxe5 {[%clk 0:00:31.8]} 27... Qxe5 {[%clk
0:00:10.9]} 28. Bxd4 {[%clk 0:00:21.6]} 28... cxd4 {[%clk 0:00:11.8]} 29. Qxf5
{[%clk 0:00:21]} 29... Rb3 {[%clk 0:00:08.5]} 30. Qf6+ {[%clk 0:00:15]} 30...
Kh7 {[%clk 0:00:08.5]} 31. Qf5+ {[%clk 0:00:14.3]} 31... Rg6 {[%clk 0:00:08]}
32. Rg1 {[%clk 0:00:12.2]} 32... Qxf5 {[%clk 0:00:07.4]} 33. exf5 {[%clk
0:00:12.6]} 33... Rf6 {[%clk 0:00:07.9]} 34. Rgf1 {[%clk 0:00:12.5]} 34... d3
{[%clk 0:00:08.2]} 35. Kg2 {[%clk 0:00:12.5]} 35... h5 {[%clk 0:00:08.1]} 36.
Rf2 {[%clk 0:00:12]} 36... Kh6 {[%clk 0:00:08.3]} 37. Kg3 {[%clk 0:00:11.5]}
37... Kg5 {[%clk 0:00:08.3]} 38. h4+ {[%clk 0:00:11.2]} 38... Kh6 {[%clk
0:00:08.5]} 39. Kf4 {[%clk 0:00:11.6]} 39... Rf8 {[%clk 0:00:07.7]} 40. Ke4
{[%clk 0:00:11.5]} 40... Re8+ {[%clk 0:00:07.5]} 41. Kd4 {[%clk 0:00:11.6]}
41... Kg7 {[%clk 0:00:07.8]} 42. f6+ {[%clk 0:00:11]} 42... Kf7 {[%clk
0:00:07.9]} 43. Rd1 {[%clk 0:00:11]} 43... Re2 {[%clk 0:00:07.4]} 44. Rf3 {[%clk
0:00:10]} 44... Rbxb2 {[%clk 0:00:06.6]} 45. Rdxd3 {[%clk 0:00:09.9]} 45... Rbd2
{[%clk 0:00:05.4]} 46. Kd5 {[%clk 0:00:08.6]} 46... Rxd3+ {[%clk 0:00:02.9]} 47.
Rxd3 {[%clk 0:00:08.5]} 47... Kxf6 {[%clk 0:00:03.5]} 48. Kxd6 {[%clk
0:00:08.8]} 48... Re4 {[%clk 0:00:04.1]} 49. c5 {[%clk 0:00:09]} 49... Rxh4
{[%clk 0:00:04.1]} 50. c6 {[%clk 0:00:09.3]} 50... Rc4 {[%clk 0:00:03.2]} 51. c7
{[%clk 0:00:09.7]} 51... Kg5 {[%clk 0:00:03.1]} 52. Rd5+ {[%clk 0:00:09.8]}
52... Kg4 {[%clk 0:00:03.3]} 53. Rc5 {[%clk 0:00:10.2]} 53... Rd4+ {[%clk
0:00:01.1]} 54. Kc6 {[%clk 0:00:10.2]} 1-0

[Event "*** Titled Tuesday Blitz"]
[Site "Chess.com"]
[Date "2021.02.09"]
[Round "6"]
[White "malakismayil"]
[Black "dukicz123"]
[Result "1/2-1/2"]
[WhiteElo "2378"]
[BlackElo "2549"]
[TimeControl "180+1"]
[EndTime "11:09:17 PST"]
[Termination "Game drawn by repetition"]

1. e4 {[%clk 0:02:37.4]} 1... e5 {[%clk 0:02:59.8]} 2. Nf3 {[%clk 0:02:36.7]}
2... Nc6 {[%clk 0:03:00.3]} 3. Bc4 {[%clk 0:02:34.8]} 3... Nf6 {[%clk
0:03:00.1]} 4. d3 {[%clk 0:02:33.8]} 4... Bc5 {[%clk 0:02:59.9]} 5. Nc3 {[%clk
0:02:33.3]} 5... O-O {[%clk 0:02:57.7]} 6. O-O {[%clk 0:02:32.5]} 6... h6 {[%clk
0:02:52.7]} 7. h3 {[%clk 0:02:31.6]} 7... a6 {[%clk 0:02:51.2]} 8. Be3 {[%clk
0:02:31.2]} 8... d6 {[%clk 0:02:51.6]} 9. Qd2 {[%clk 0:02:29.8]} 9... Re8 {[%clk
0:02:44.3]} 10. Rad1 {[%clk 0:02:12.4]} 10... Be6 {[%clk 0:02:42.9]} 11. Rfe1
{[%clk 0:02:04]} 11... Qd7 {[%clk 0:02:24.5]} 12. Kh2 {[%clk 0:02:01.5]} 12...
Rad8 {[%clk 0:02:22.7]} 13. Bd5 {[%clk 0:01:57.6]} 13... Bxd5 {[%clk 0:02:16.9]}
14. Nxd5 {[%clk 0:01:54.9]} 14... Nxd5 {[%clk 0:01:36.1]} 15. exd5 {[%clk
0:01:55.8]} 15... Ne7 {[%clk 0:01:36.5]} 16. c4 {[%clk 0:01:21]} 16... Bxe3
{[%clk 0:01:32.4]} 17. fxe3 {[%clk 0:01:21.9]} 17... c6 {[%clk 0:01:27.1]} 18.
e4 {[%clk 0:01:19.2]} 18... cxd5 {[%clk 0:01:26.1]} 19. cxd5 {[%clk 0:01:20.1]}
19... Ng6 {[%clk 0:01:26]} 20. Ng1 {[%clk 0:01:08.2]} 20... f5 {[%clk 0:01:24]}
21. Qe2 {[%clk 0:01:03.7]} 21... Rf8 {[%clk 0:01:18.5]} 22. Rf1 {[%clk 0:00:55]}
22... fxe4 {[%clk 0:01:16.5]} 23. dxe4 {[%clk 0:00:53.9]} 23... Qa4 {[%clk
0:01:07.2]} 24. a3 {[%clk 0:00:49.5]} 24... Nf4 {[%clk 0:01:03.2]} 25. Qe3
{[%clk 0:00:46.8]} 25... Rc8 {[%clk 0:00:42.9]} 26. Ne2 {[%clk 0:00:44.4]} 26...
Nxe2 {[%clk 0:00:38.8]} 27. Qxe2 {[%clk 0:00:45.3]} 27... Qc2 {[%clk 0:00:35.7]}
28. Qg4 {[%clk 0:00:36.4]} 28... Qc7 {[%clk 0:00:12.6]} 29. Qe6+ {[%clk
0:00:33.8]} 29... Kh8 {[%clk 0:00:12.9]} 30. Qg6 {[%clk 0:00:29.9]} 30... Qe7
{[%clk 0:00:11.9]} 31. Kg1 {[%clk 0:00:22.2]} 31... Rce8 {[%clk 0:00:11.9]} 32.
Qh5 {[%clk 0:00:18.5]} 32... Rc8 {[%clk 0:00:07.7]} 33. Qg6 {[%clk 0:00:17.4]}
33... Rcd8 {[%clk 0:00:07.7]} 34. Qe6 {[%clk 0:00:14.6]} 34... Qxe6 {[%clk
0:00:06.8]} 35. dxe6 {[%clk 0:00:14.5]} 35... Rfe8 {[%clk 0:00:07.4]} 36. Rf7
{[%clk 0:00:12.8]} 36... Rxe6 {[%clk 0:00:07.7]} 37. Rxb7 {[%clk 0:00:12.5]}
37... d5 {[%clk 0:00:06.8]} 38. exd5 {[%clk 0:00:11.6]} 38... Red6 {[%clk
0:00:07.5]} 39. Re7 {[%clk 0:00:11.1]} 39... Rxd5 {[%clk 0:00:07.3]} 40. Re1
{[%clk 0:00:10.4]} 40... a5 {[%clk 0:00:04.7]} 41. R7xe5 {[%clk 0:00:09]} 41...
a4 {[%clk 0:00:04.5]} 42. Rxd5 {[%clk 0:00:08.8]} 42... Rxd5 {[%clk 0:00:05.4]}
43. Re4 {[%clk 0:00:08.9]} 43... Ra5 {[%clk 0:00:04.5]} 44. Rb4 {[%clk
0:00:08.2]} 44... Kh7 {[%clk 0:00:04.7]} 45. Kf2 {[%clk 0:00:08.4]} 45... Kg6
{[%clk 0:00:05.1]} 46. Ke3 {[%clk 0:00:08.4]} 46... Kg5 {[%clk 0:00:05.2]} 47.
g3 {[%clk 0:00:07.1]} 47... g6 {[%clk 0:00:05.5]} 48. Kf3 {[%clk 0:00:05.8]}
48... h5 {[%clk 0:00:05.6]} 49. h4+ {[%clk 0:00:05]} 49... Kf5 {[%clk 0:00:06]}
50. Rf4+ {[%clk 0:00:04.3]} 50... Ke5 {[%clk 0:00:05.7]} 51. Rb4 {[%clk
0:00:05.2]} 51... Kf5 {[%clk 0:00:06.1]} 52. Ke3 {[%clk 0:00:05.2]} 52... Ke5
{[%clk 0:00:06.2]} 53. Re4+ {[%clk 0:00:04.6]} 53... Kf5 {[%clk 0:00:06.7]} 54.
Rb4 {[%clk 0:00:05.1]} 54... Ke5 {[%clk 0:00:07.1]} 55. Kd3 {[%clk 0:00:05.3]}
55... Kf5 {[%clk 0:00:07.7]} 56. Ke3 {[%clk 0:00:04.1]} 1/2-1/2